fUSD/lending_fUSD_20250515
["ID","MTS","AMOUNT","RATE_DAILY","PERIOD"]
[361129726,1747294260798,-400.0,0.0001139,2]
[361129727,1747294260808,-400.0,0.0001139,2]
[361129728,1747294260818,-400.0,0.0001139,2]
[361129729,1747294260828,-400.0,0.0001139,2]
[361129730,1747294260838,-1423.464727,0.0001139,2]
[361129731,1747294260847,-573.99,0.0001139,2]
[361129732,1747294260856,-404.70542135,0.0001139,2]
[361129733,1747294260866,-1209.37,0.0001139,2]
[361129734,1747294260875,-967.6,0.0001139,2]
[361129735,1747294260885,-400.0,0.0001139,2]
[361129736,1747294260895,-400.0,0.0001139,2]
[361129737,1747294260905,-400.0,0.0001139,2]
[361129738,1747294260915,-400.0,0.0001139,2]
[361129739,1747294260926,-263.52242847,0.0001139,2]
[361129740,1747294260936,-2233.72,0.0001139,2]
[361129741,1747294260946,-400.0,0.00011391,2]
[361129742,1747294260955,-505.07,0.00011391,2]
[361129743,1747294260965,-400.0,0.00011391,2]
[361129744,1747294260975,-5563.52963,0.00011391,2]
[361129745,1747294260984,-389.122121,0.00011391,2]
[361129746,1747294260994,-400.0,0.00011391,2]
[361129747,1747294261004,-400.0,0.00011391,2]
[361129748,1747294261016,-404.45,0.00011391,2]
[361129749,1747294261026,-400.0,0.00011391,2]
[361129750,1747294261035,-400.0,0.00011391,2]
[361129751,1747294261045,-1450.43,0.00011391,2]
[361129752,1747294261055,-393.61475406,0.00011391,2]
[361129753,1747294261064,-521.91,0.00011391,2]
[361129754,1747294261074,-1076.32,0.00011391,2]
[361129755,1747294261083,-661.08,0.00011391,2]
[361129756,1747294261096,-774.6,0.00011391,2]
[361129757,1747294261105,-400.0,0.00011391,2]
[361129758,1747294261115,-1486.99,0.00011391,2]
[361129759,1747294261125,-400.0,0.00011391,2]
[361129760,1747294261134,-400.0,0.00011391,2]
[361129761,1747294261144,-575.8,0.00011391,2]
[361129762,1747294261154,-804.9,0.00011391,2]
[361129763,1747294261163,-425.7,0.00011391,2]
[361129764,1747294261174,-1113.19,0.00011391,2]
[361129765,1747294261184,-500.0,0.00011391,2]
[361129766,1747294261194,-493.35,0.00011391,2]
[361129767,1747294261204,-400.0,0.00011391,2]
[361129768,1747294261213,-400.0,0.00011391,2]
[361129769,1747294261223,-1324.16,0.00011391,2]
[361129770,1747294261232,-400.0,0.00011391,2]
[361129771,1747294261242,-697.87,0.00011391,2]
[361129772,1747294261251,-419.54,0.00011391,2]
[361129773,1747294261261,-400.0,0.00011391,2]
[361129774,1747294261270,-419.15911502,0.00011391,2]
[361129775,1747294261279,-400.0,0.00011391,2]
[361129776,1747294261289,-498.76,0.00011391,2]
[361129777,1747294261298,-400.0,0.00011391,2]
[361129778,1747294261308,-175.36897393,0.00011391,2]
[361129779,1747294261317,-400.0,0.00011391,2]
[361129780,1747294261326,-51674.11,0.00011391,2]
[361129781,1747294261335,-734.59,0.00011391,2]
[361129782,1747294261344,-1020.69,0.00011391,2]
[361129783,1747294261354,-949.48,0.00011391,2]
[361129784,1747294261363,-593.06,0.00011392,2]
[361129785,1747294261372,-400.0,0.00011392,2]
[361129786,1747294261381,-400.0,0.00011392,2]
[361129787,1747294261390,-400.0,0.00011392,2]
[361129788,1747294261400,-400.0,0.00011392,2]
[361129789,1747294261409,-400.0,0.00011392,2]
[361129790,1747294261419,-400.0,0.00011392,2]
[361129791,1747294261430,-619.61,0.00011392,2]
[361129792,1747294261439,-547.08,0.00011392,2]
[361129793,1747294261449,-400.0,0.00011392,2]
[361129794,1747294261458,-535.86,0.00011392,2]
[361129795,1747294261468,-400.0,0.00011392,2]
[361129796,1747294261477,-425.25,0.00011392,2]
[361129797,1747294261486,-614.41,0.00011392,2]
[361129798,1747294261496,-547.13,0.00011392,2]
[361129799,1747294261507,-400.0,0.00011392,2]
[361129800,1747294261517,-400.0,0.00011392,2]
[361129801,1747294261526,-400.0,0.00011392,2]
[361129802,1747294261535,-400.0,0.00011392,2]
[361129803,1747294261545,-400.0,0.00011392,2]
[361129804,1747294261554,-400.0,0.00011392,2]
[361129805,1747294261563,-633.39,0.00011392,2]
[361129806,1747294261573,-425.71,0.00011392,2]
[361129807,1747294261582,-400.0,0.00011392,2]
[361129808,1747294261591,-400.0,0.00011392,2]
[361129809,1747294261602,-400.0,0.00011392,2]
[361129810,1747294261611,-400.0,0.00011392,2]
[361129811,1747294261620,-400.0,0.00011392,2]
[361129812,1747294261630,-546.0,0.00011392,2]
[361129813,1747294261639,-400.0,0.00011392,2]
[361129814,1747294261649,-337.27779762,0.00011392,2]
[361129815,1747294261658,-400.0,0.00011392,2]
[361129816,1747294261669,-1219.42,0.00011392,2]
[361129817,1747294261679,-994.03,0.00011392,2]
[361129818,1747294261688,-400.0,0.00011392,2]
[361129819,1747294261698,-400.0,0.00011392,2]
[361129820,1747294261708,-400.0,0.00011392,2]
[361129821,1747294261717,-400.0,0.00011392,2]
[361129822,1747294261727,-400.0,0.00011392,2]
[361129823,1747294261736,-400.0,0.00011392,2]
[361129824,1747294261746,-400.0,0.00011392,2]
[361129825,1747294261755,-400.0,0.00011392,2]
[361129826,1747294261764,-400.0,0.00011392,2]
[361129827,1747294261774,-400.0,0.00011392,2]
[361129828,1747294261783,-400.0,0.00011392,2]
[361129829,1747294261792,-400.0,0.00011392,2]
[361129830,1747294261801,-400.0,0.00011392,2]
[361129831,1747294261811,-416.19,0.00011392,2]
[361129832,1747294261821,-400.0,0.00011392,2]
[361129833,1747294261830,-400.0,0.00011392,2]
[361129834,1747294261839,-400.0,0.00011392,2]
[361129835,1747294261849,-400.0,0.00011392,2]
[361129836,1747294261858,-400.0,0.00011392,2]
[361129837,1747294261868,-400.0,0.00011392,2]
[361129838,1747294261877,-400.0,0.00011392,2]
[361129839,1747294261886,-400.0,0.00011392,2]
[361129840,1747294261896,-400.0,0.00011392,2]
[361129841,1747294261906,-400.0,0.00011392,2]
[361129842,1747294261916,-588.21,0.00011392,2]
[361129843,1747294261927,-400.0,0.00011392,2]
[361129844,1747294261937,-272.78329284,0.00011392,2]
[361129845,1747294261947,-400.0,0.00011392,2]
[361129846,1747294261956,-400.0,0.00011392,2]
[361129847,1747294261965,-494.85,0.00011392,2]
[361129848,1747294261975,-400.0,0.00011392,2]
[361129849,1747294261985,-434.02,0.00011392,2]
[361129850,1747294261994,-434.41,0.00011392,2]
[361129851,1747294262003,-400.0,0.00011392,2]
[361129852,1747294262014,-400.0,0.00011392,2]
[361129853,1747294262025,-400.0,0.00011392,2]
[361129854,1747294262036,-400.0,0.00011392,2]
[361129855,1747294262045,-400.0,0.00011392,2]
[361129856,1747294262055,-400.0,0.00011392,2]
[361129857,1747294262064,-1123.27,0.00011392,2]
[361129858,1747294262075,-400.0,0.00011392,2]
[361129859,1747294262084,-400.0,0.00011392,2]
[361129860,1747294262094,-760.7,0.00011392,2]
[361129861,1747294262104,-400.0,0.00011392,2]
[361129862,1747294262115,-82.16280953,0.00011392,2]
[361129863,1747294262165,-1509.69719047,0.00011392,2]
[361129864,1747294262177,-400.0,0.00011392,2]
[361129865,1747294262187,-329.10280953,0.00011392,2]
[361129866,1747294262199,-346.07719047,0.00011392,2]
[361129867,1747294262215,-670.05,0.00011392,2]
[361129868,1747294262225,-259.4779925,0.00011392,2]
[361129869,1747294262250,-260.47703341,0.00011118,2]
[361129870,1747294262262,-264.55296659,0.00011118,2]
[361129871,1747294262272,-140.5220075,0.00011392,2]
[361129872,1747294262282,-361.99502591,0.00011392,2]
[361129873,1747294262294,-795.03497409,0.00011392,2]
[361129874,1747294262304,-813.4,0.00011392,2]
[361129875,1747294262316,-400.0,0.00011392,2]
[361129876,1747294262326,-400.0,0.00011392,2]
[361129877,1747294262337,-1227.41,0.00011392,2]
[361129878,1747294262348,-1312.43,0.00011392,2]
[361129879,1747294262358,-400.0,0.00011392,2]
[361129880,1747294262369,-791.78,0.00011392,2]
[361129881,1747294262379,-1206.65,0.00011392,2]
[361129882,1747294262390,-832.45264907,0.00011392,2]
[361129883,1747294262403,-21.21735093,0.00011392,2]
[361129884,1747294262414,-400.0,0.00011392,2]
[361129885,1747294262428,-400.0,0.00011392,2]
[361129886,1747294262439,-316.64789415,0.00011392,2]
[361129887,1747294262453,-83.35210585,0.00011392,2]
[361129888,1747294262464,-536.99789337,0.00011392,2]
[361129889,1747294262485,-725.98210663,0.00011392,2]
[361129890,1747294262497,-227.39004703,0.00011392,2]
[361129893,1747294381928,233.51616379,8.433e-05,2]
[361129894,1747294381957,286.67383621,8.433e-05,2]
[361129895,1747294396849,200.0,9.597e-05,2]
[361129897,1747294492444,150.0,0.00010232,7]
[361129898,1747294625070,167.31,9.885e-05,2]
[361129903,1747294724967,153.12,0.000249,31]
[361129904,1747294725021,153.12,0.000249,31]
[361129905,1747294725084,153.12,0.000249,31]
[361129906,1747294725128,153.12,0.000249,31]
[361129907,1747294725184,153.12,0.000249,31]
[361129908,1747294725247,153.12,0.000249,31]
[361129909,1747294725310,153.12,0.000249,31]
[361129911,1747294793488,155.006,0.000249,31]
[361129912,1747294838589,400.0,0.000249,31]
[361129913,1747294999655,-634.82293,0.0001003,2]
[361129914,1747294999680,-200.0,0.0001008,2]
[361129915,1747294999706,-300.0,0.00010105,2]
[361129916,1747295009832,-39865.17707,0.00010106,2]
[361129917,1747295013682,580.2752576,0.00025,30]
[361129918,1747295170514,750.31,0.00021945,30]
[361129919,1747295291641,-157.91,9.969e-05,2]
[361129920,1747295291666,-200.0,9.977e-05,2]
[361129924,1747295431497,-250.0,9.984e-05,2]
[361129925,1747295431507,-157.8,9.991e-05,2]
[361129926,1747295431519,-42.2,9.991e-05,2]
[361129927,1747295431529,-159.71518269,9.997e-05,2]
[361129928,1747295431539,-313.98980265,0.0001,2]
[361129929,1747295431551,-136.01019735,0.0001,2]
[361129930,1747295431561,-200.0,0.00010012,2]
[361129931,1747295431571,-809.96,0.00010038,2]
[361129932,1747295431581,-250.0,0.00010039,2]
[361129933,1747295431592,-175.22293,0.00010106,2]
[361129934,1747295431602,-167.87,0.00010159,2]
[361129935,1747295431612,-1000.0,0.00010159,2]
[361129936,1747295431622,-250.0,0.00010189,2]
[361129937,1747295431632,-172.08,0.00010267,2]
[361129938,1747295431642,-1060.62416382,0.00010358,2]
[361129939,1747295431652,-1200.0,0.00010696,2]
[361129940,1747295431663,-520.19,0.00010697,2]
[361129941,1747295431672,-300.0,0.00010799,2]
[361129942,1747295431682,-1812.66760751,0.000108,3]
[361129943,1747295431694,-887.33239249,0.000108,3]
[361129944,1747295431703,-5899.58183169,0.00010835,2]
[361129945,1747295431714,-151.24621229,0.00010883,2]
[361129946,1747295431723,-719.52358209,0.00010883,2]
[361129947,1747295431734,-151.0,0.00010883,2]
[361129948,1747295431744,-668.65185757,0.00010883,2]
[361129949,1747295431755,-155.0,0.00010883,2]
[361129950,1747295431764,-207.4,0.00010883,2]
[361129951,1747295431774,-6471.94452387,0.0001089,2]
[361129953,1747295436910,-3285.93024673,0.0001089,2]
[361129954,1747295436923,-291.53218146,0.0001089,2]
[361129955,1747295436934,-2655.40026375,0.0001089,2]
[361129956,1747295436945,-1922.71673897,0.0001089,2]
[361129957,1747295436957,-1036.89482007,0.0001089,2]
[361129958,1747295436970,-1225.64995436,0.0001089,2]
[361129959,1747295436981,-632.70219029,0.0001089,2]
[361129960,1747295436991,-5400.0,0.000109,3]
[361129961,1747295437000,-10038.39637838,0.000109,2]
[361129962,1747295437010,-904.0,0.00010914,2]
[361129963,1747295437020,-452.72,0.00010925,2]
[361129964,1747295437029,-905.26,0.00010925,2]
[361129965,1747295437039,-452.72,0.00010925,2]
[361129966,1747295437049,-250.0,0.00010966,2]
[361129967,1747295437058,-200.0,0.00010966,2]
[361129968,1747295437068,-150.0,0.00010966,2]
[361129969,1747295437077,-832.9686977,0.00010973,2]
[361129970,1747295437087,-1512.14555836,0.00010975,2]
[361129971,1747295437096,-200.0,0.00010983,2]
[361129972,1747295437106,-1144.03311042,0.00011,2]
[361129973,1747295437115,-500.0,0.00011012,2]
[361129974,1747295437125,-369.72969706,0.00011012,2]
[361129975,1747295437134,-360.97363367,0.00011012,2]
[361129976,1747295437146,-7809.47087153,0.00011012,2]
[361129977,1747295437155,-2500.0,0.00011013,2]
[361129978,1747295437165,-1000.0,0.00011014,2]
[361129979,1747295437175,-204.06961773,0.00011014,2]
[361129984,1747295437210,-266.12688227,0.00011014,2]
[361129986,1747295437222,-5000.0,0.00011016,2]
[361129988,1747295437235,-225.26773992,0.00011016,2]
[361129990,1747295437245,-392.0586,0.00011016,2]
[361129992,1747295437256,-1624.20225934,0.00011018,2]
[361129995,1747295437270,-2237.5817208,0.00011018,2]
[361130023,1747295437438,-232.40357495,0.00011018,2]
[361130025,1747295437448,-1239.88683261,0.00011065,2]
[361130027,1747295437457,-8494.01737136,0.00011099,2]
[361130030,1747295437474,-325.1,0.00011099,2]
[361130032,1747295437484,-2444.94760762,0.00011099,2]
[361130037,1747295437521,-502.90757183,0.00011099,2]
[361130046,1747295437600,-960.07350947,0.00011099,2]
[361130053,1747295437669,-130.50283128,0.00011099,2]
[361130055,1747295437678,-637.61,0.000111,2]
[361130057,1747295437688,-258.81652704,0.000111,2]
[361130060,1747295437699,-368.47889,0.000111,2]
[361130062,1747295437711,-372.70458296,0.000111,2]
[361130064,1747295437720,-308.18659204,0.00011109,2]
[361130066,1747295437731,-528.69395831,0.00011109,2]
[361130068,1747295437743,-861.3422932,0.00011109,2]
[361130070,1747295437752,-223.74782546,0.00011113,2]
[361130072,1747295437763,-176.25217454,0.00011113,2]
[361130074,1747295437773,-471.59,0.00011113,2]
[361130076,1747295437782,-400.0,0.00011113,2]
[361130078,1747295437791,-400.0,0.00011113,2]
[361130080,1747295437801,-400.0,0.00011113,2]
[361130082,1747295437810,-400.0,0.00011113,2]
[361130084,1747295437819,-400.0,0.00011113,2]
[361130086,1747295437828,-35.84119156,0.00011113,2]
[361130088,1747295437840,-364.15880844,0.00011113,2]
[361130091,1747295437849,-400.0,0.00011113,2]
[361130094,1747295437859,-400.0,0.00011113,2]
[361130097,1747295437868,-400.0,0.00011113,2]
[361130100,1747295437877,-1098.35,0.00011113,2]
[361130102,1747295437887,-409.49115156,0.00011113,2]
[361130105,1747295437903,-341.3006927,0.00011113,2]
[361130107,1747295437915,-61.95815574,0.00011113,2]
[361130109,1747295437924,-449.81,0.00011113,2]
[361130111,1747295437933,-586.02,0.00011113,2]
[361130113,1747295437943,-400.0,0.00011113,2]
[361130115,1747295437952,-569.08,0.00011113,2]
[361130117,1747295437962,-507.03,0.00011113,2]
[361130119,1747295437971,-400.0,0.00011113,2]
[361130121,1747295437980,-1352.91,0.00011113,2]
[361130122,1747295437989,-875.34,0.00011113,2]
[361130124,1747295437999,-400.0,0.00011113,2]
[361130126,1747295438008,-506.12769622,0.00011113,2]
[361130128,1747295438018,-415.04,0.00011113,2]
[361130130,1747295438027,-924.77,0.00011113,2]
[361130132,1747295438037,-402.49940612,0.00011113,2]
[361130135,1747295438046,-438.0406046,0.00011113,2]
[361130291,1747295439705,-509.39693629,0.00010744,2]
[361130300,1747295439902,-252.44581563,0.00010744,2]
[361130301,1747295439915,-535.88313008,0.00010744,2]
[361130302,1747295439924,-220.9693954,0.00011113,2]
[361130303,1747295439933,-13.14747456,0.00011114,2]
[361130304,1747295440017,-407.79472544,0.00011114,2]
[361130305,1747295440026,-400.0,0.00011114,2]
[361130306,1747295440036,-400.0,0.00011114,2]
[361130307,1747295440045,-400.0,0.00011114,2]
[361130308,1747295440054,-11164.647945,0.00011114,2]
[361130309,1747295440063,-857.8164,0.00011114,2]
[361130310,1747295440072,-400.0,0.00011114,2]
[361130311,1747295440081,-2846.929454,0.00011114,2]
[361130312,1747295440090,-1169.89,0.00011114,2]
[361130313,1747295440099,-400.0,0.00011114,2]
[361130314,1747295440108,-462.98,0.00011114,2]
[361130315,1747295440117,-400.0,0.00011114,2]
[361130316,1747295440126,-400.0,0.00011114,2]
[361130317,1747295440135,-400.0,0.00011114,2]
[361130318,1747295440146,-400.0,0.00011114,2]
[361130319,1747295440155,-400.0,0.00011114,2]
[361130321,1747295440165,-400.0,0.00011114,2]
[361130323,1747295440174,-1392.62,0.00011114,2]
[361130324,1747295440183,-501.11,0.00011114,2]
[361130325,1747295440192,-400.0,0.00011114,2]
[361130326,1747295440201,-244.48186375,0.00011114,2]
[361130327,1747295440209,-400.0,0.00011114,2]
[361130328,1747295440218,-634.73,0.00011114,2]
[361130329,1747295440227,-1033.42,0.00011114,2]
[361130330,1747295440236,-400.0,0.00011114,2]
[361130331,1747295440245,-400.0,0.00011114,2]
[361130332,1747295440254,-400.0,0.00011114,2]
[361130333,1747295440263,-499.10980737,0.00011114,2]
[361130334,1747295440272,-743.72,0.00011114,2]
[361130335,1747295440281,-400.0,0.00011114,2]
[361130336,1747295440291,-400.0,0.00011114,2]
[361130337,1747295440299,-400.0,0.00011114,2]
[361130338,1747295440308,-421.47,0.00011114,2]
[361130339,1747295440317,-400.0,0.00011114,2]
[361130340,1747295440326,-426.10743867,0.00011114,2]
[361130341,1747295440335,-400.0,0.00011114,2]
[361130342,1747295440344,-400.0,0.00011114,2]
[361130343,1747295440353,-1034.8,0.00011114,2]
[361130344,1747295440362,-869.54,0.00011114,2]
[361130345,1747295440371,-400.0,0.00011114,2]
[361130346,1747295440380,-423.63,0.00011114,2]
[361130347,1747295440389,-400.0,0.00011114,2]
[361130348,1747295440399,-400.0,0.00011114,2]
[361130349,1747295440409,-400.0,0.00011114,2]
[361130350,1747295440419,-400.0,0.00011114,2]
[361130351,1747295440431,-494.67,0.00011114,2]
[361130352,1747295440441,-527.82,0.00011114,2]
[361130353,1747295440453,-400.0,0.00011114,2]
[361130354,1747295440462,-481.94,0.00011114,2]
[361130355,1747295440472,-2225.21,0.00011114,2]
[361130356,1747295440482,-754.5,0.00011114,2]
[361130357,1747295440491,-991.46,0.00011114,2]
[361130358,1747295440501,-1374.2,0.00011114,2]
[361130359,1747295440511,-452.24,0.00011114,2]
[361130360,1747295440521,-1037.09,0.00011114,2]
[361130361,1747295440531,-2969.62,0.00011114,2]
[361130362,1747295440540,-867.74,0.00011114,2]
[361130363,1747295440550,-400.0,0.00011114,2]
[361130364,1747295440559,-578.48,0.00011114,2]
[361130365,1747295440569,-1213.82,0.00011114,2]
[361130366,1747295440577,-400.0,0.00011114,2]
[361130367,1747295440585,-400.0,0.00011114,2]
[361130368,1747295440594,-400.0,0.00011114,2]
[361130369,1747295440603,-400.0,0.00011114,2]
[361130370,1747295440611,-639.71,0.00011114,2]
[361130371,1747295440620,-400.0,0.00011114,2]
[361130372,1747295440629,-466.82865513,0.00011114,2]
[361130373,1747295440637,-401.12969669,0.00011114,2]
[361130374,1747295440648,-400.0,0.00011114,2]
[361130375,1747295440656,-526.16,0.00011114,2]
[361130376,1747295440665,-400.0,0.00011114,2]
[361130377,1747295440674,-400.68,0.00011114,2]
[361130378,1747295440683,-400.0,0.00011114,2]
[361130379,1747295440691,-400.0,0.00011114,2]
[361130380,1747295440700,-400.0,0.00011114,2]
[361130381,1747295440709,-400.0,0.00011114,2]
[361130382,1747295440718,-400.0,0.00011114,2]
[361130383,1747295440727,-400.0,0.00011114,2]
[361130384,1747295440734,-400.0,0.00011114,2]
[361130385,1747295440740,-400.0,0.00011114,2]
[361130386,1747295440747,-400.0,0.00011114,2]
[361130387,1747295440755,-400.0,0.00011114,2]
[361130388,1747295440762,-2475.7,0.00011114,2]
[361130389,1747295440769,-400.0,0.00011114,2]
[361130390,1747295440775,-929.03,0.00011114,2]
[361130391,1747295440783,-515.59,0.00011114,2]
[361130392,1747295440789,-400.0,0.00011114,2]
[361130393,1747295440796,-400.0,0.00011114,2]
[361130394,1747295440803,-400.0,0.00011114,2]
[361130395,1747295440809,-188.52503015,0.00011114,2]
[361130396,1747295440816,-168.98999083,0.00011114,2]
[361130397,1747295440823,-195.18806863,0.00011114,2]
[361130398,1747295440830,-543.64,0.00011115,2]
[361130399,1747295440837,-400.0,0.00011115,2]
[361130400,1747295440843,-400.0,0.00011115,2]
[361130401,1747295440852,-400.0,0.00011115,2]
[361130402,1747295440860,-877.79,0.00011115,2]
[361130403,1747295440867,-400.0,0.00011115,2]
[361130404,1747295440875,-400.0,0.00011115,2]
[361130405,1747295440883,-400.0,0.00011115,2]
[361130406,1747295440891,-400.0,0.00011115,2]
[361130407,1747295440900,-491.21,0.00011115,2]
[361130408,1747295440908,-400.0,0.00011115,2]
[361130409,1747295440915,-563.21,0.00011115,2]
[361130410,1747295440923,-501.53,0.00011115,2]
[361130411,1747295440930,-400.0,0.00011115,2]
[361130412,1747295440937,-400.0,0.00011115,2]
[361130413,1747295440945,-400.0,0.00011115,2]
[361130414,1747295440953,-400.0,0.00011115,2]
[361130415,1747295440961,-400.0,0.00011115,2]
[361130416,1747295440968,-400.86623011,0.00011115,2]
[361130417,1747295440976,-580.6,0.00011115,2]
[361130418,1747295440984,-400.0,0.00011115,2]
[361130419,1747295440991,-400.0,0.00011115,2]
[361130420,1747295440999,-400.0,0.00011115,2]
[361130421,1747295441006,-400.0,0.00011115,2]
[361130422,1747295441014,-400.0,0.00011115,2]
[361130423,1747295441021,-400.0,0.00011115,2]
[361130424,1747295441027,-400.0,0.00011115,2]
[361130425,1747295441035,-500.5,0.00011115,2]
[361130426,1747295441042,-400.0,0.00011115,2]
[361130427,1747295441050,-567.23,0.00011115,2]
[361130428,1747295441058,-911.19,0.00011115,2]
[361130429,1747295441065,-242.2712848,0.00011115,2]
[361130430,1747295441072,-400.0,0.00011115,2]
[361130431,1747295441079,-400.0,0.00011115,2]
[361130432,1747295441087,-400.0,0.00011115,2]
[361130433,1747295441095,-400.0,0.00011115,2]
[361130434,1747295441102,-400.0,0.00011115,2]
[361130435,1747295441111,-400.0,0.00011115,2]
[361130436,1747295441121,-400.0,0.00011115,2]
[361130437,1747295441131,-460.89953445,0.00011115,2]
[361130438,1747295441140,-426.60153713,0.00011115,2]
[361130439,1747295441151,-400.0,0.00011115,2]
[361130440,1747295441162,-400.0,0.00011115,2]
[361130441,1747295441171,-400.0,0.00011115,2]
[361130442,1747295441181,-400.0,0.00011115,2]
[361130443,1747295441191,-400.0,0.00011115,2]
[361130444,1747295441201,-400.0,0.00011115,2]
[361130445,1747295441210,-400.0,0.00011115,2]
[361130446,1747295441220,-400.0,0.00011115,2]
[361130447,1747295441229,-400.0,0.00011115,2]
[361130448,1747295441239,-539.19,0.00011115,2]
[361130449,1747295441248,-400.0,0.00011115,2]
[361130450,1747295441257,-400.0,0.00011115,2]
[361130451,1747295441268,-400.0,0.00011115,2]
[361130452,1747295441277,-453.61,0.00011115,2]
[361130453,1747295441287,-400.0,0.00011115,2]
[361130454,1747295441296,-400.0,0.00011115,2]
[361130455,1747295441305,-400.0,0.00011115,2]
[361130456,1747295441315,-400.0,0.00011115,2]
[361130457,1747295441324,-400.0,0.00011115,2]
[361130458,1747295441334,-385.939136,0.00011115,2]
[361130459,1747295441343,-400.0,0.00011115,2]
[361130460,1747295441353,-400.0,0.00011115,2]
[361130461,1747295441363,-400.0,0.00011115,2]
[361130462,1747295441372,-400.0,0.00011115,2]
[361130463,1747295441382,-400.0,0.00011115,2]
[361130464,1747295441393,-400.0,0.00011115,2]
[361130465,1747295441402,-417.29940234,0.00011115,2]
[361130466,1747295441412,-400.0,0.00011115,2]
[361130467,1747295441422,-400.0,0.00011115,2]
[361130468,1747295441434,-400.0,0.00011115,2]
[361130469,1747295441443,-417.29642532,0.00011115,2]
[361130470,1747295441453,-400.0,0.00011115,2]
[361130471,1747295441463,-400.0,0.00011115,2]
[361130472,1747295441473,-400.0,0.00011115,2]
[361130473,1747295441482,-400.0,0.00011115,2]
[361130474,1747295441492,-400.0,0.00011115,2]
[361130475,1747295441502,-400.0,0.00011115,2]
[361130476,1747295441511,-400.0,0.00011115,2]
[361130477,1747295441737,-400.0,0.00011115,2]
[361130478,1747295441748,-418.09851851,0.00011115,2]
[361130479,1747295441758,-400.0,0.00011115,2]
[361130480,1747295441768,-400.0,0.00011115,2]
[361130481,1747295441778,-400.0,0.00011115,2]
[361130482,1747295441787,-400.0,0.00011115,2]
[361130483,1747295441797,-400.0,0.00011115,2]
[361130484,1747295441806,-392.46349566,0.00011115,2]
[361130485,1747295441815,-504.32102041,0.00011115,2]
[361130486,1747295441824,-400.0,0.00011115,2]
[361130487,1747295441834,-250.0,0.00011115,2]
[361130488,1747295441843,-409.46866457,0.00011115,2]
[361130489,1747295441853,-1029.66,0.00011115,2]
[361130490,1747295441862,-400.0,0.00011115,2]
[361130491,1747295441871,-400.0,0.00011115,2]
[361130492,1747295441881,-400.0,0.00011115,2]
[361130493,1747295441890,-400.0,0.00011115,2]
[361130494,1747295441901,-179.44684338,0.00011115,2]
[361130495,1747295441910,-406.9244066,0.00011115,2]
[361130496,1747295441920,-400.0,0.00011115,2]
[361130497,1747295441930,-587.7,0.00011115,2]
[361130498,1747295441939,-403.79092952,0.00011115,2]
[361130499,1747295441948,-400.0,0.00011115,2]
[361130500,1747295441958,-400.0,0.00011115,2]
[361130501,1747295441967,-424.43868566,0.00011115,2]
[361130502,1747295441976,-400.0,0.00011115,2]
[361130503,1747295441986,-457.19,0.00011115,2]
[361130504,1747295441995,-400.0,0.00011115,2]
[361130505,1747295442004,-185.02578559,0.00011115,2]
[361130506,1747295442014,-400.0,0.00011115,2]